Cogmind - Beta 16 @@@ ROGUE MODE // 2025.10.30 @ 10:32:59 Player: Tuja Result: Destroyed by P-80 Master with Gamma Rifle Performance ------------- Evolutions (7) 3500 Regions Visited (12) 2400 Robots Destroyed (75) 375 Value Destroyed (2371) 2371 Prototype IDs (13) 260 Alien Tech Used (4) 800 Bonus (5554) 5554 TOTAL SCORE: 15260 Bonus ------- Follower Combat Kills 54 Used Core Reset Matrix 3000 Scanned by Researcher 500 Met Sigix 2000 Cogmind --------- Core Integrity 0/1300 Matter 39/300 Energy 94/100 System Corruption 0% Temperature Cool (0) Movement Core (300) Ox5 Location -3/Quarantine Parts ------- > --- POWER (2) -------- (None) > --- PROPULSION (6) --- (None) > --- UTILITY (11) ----- Enhanced Optical Array Graphene Brace Hacking Suite Improved System Shield > --- WEAPON (2) ------- Linear Accelerator Plasma Sword > --- INVENTORY (5) ---- Light Particle Reactor Subatomic Replicator Peak State ------------ > --- POWER ------------ Light Nuclear Core Micro Antimatter Reactor > --- PROPULSION ------- Nuclear Pulse Array Diametric Drive Improved Diametric Drive Impulse Thruster Array > --- UTILITY ---------- Medium Storage Unit Enhanced Optical Array Long-range Sensor Array Advanced Signal Interpreter Advanced Reaction Control System Phase Armor Hacking Suite System Shield Improved System Shield Improved System Guard > --- WEAPON ----------- Nova Cannon > --- INVENTORY -------- Light Particle Reactor Q-thruster Improved Hacking Suite Advanced Recalibrator Terrabomb Railgun Linear Accelerator Fusion Bomb Launcher Plasma Sword Signal Generator [Rating: 142] Favorites ----------- Power Light Ion Engine Engine Light Ion Engine Power Core Light Nuclear Core Reactor Micro Antimatter Reactor Propulsion VTOL Module Treads Light Treads Leg Carbon-fiber Leg Wheel Wheel Flight Unit VTOL Module Utility System Shield Device Improved Terrain Scanner Storage Medium Storage Unit Processor Enhanced Optical Array Hackware System Shield Protection Weapon Shielding Artifact Phase Armor Weapon Light Assault Rifle Energy Gun Improved Medium Laser Energy Cannon Nova Cannon Ballistic Gun Light Assault Rifle Ballistic Cannon Linear Accelerator Launcher Mini Grenade Launcher Impact Weapon Hammer Slashing Weapon Chainsword Build | -11 -10 -10 -9 -8 -7 -6 -5 -4 -4 -4 -3 -3 ------- Run | Yrd Mat Min Mat Mat Fac Fac Fac Fac Was Fac Res Qua Slots Evolved 14 | . . . 2 2 2 2 2 2 . . 2 . Power 1 | . . . . . . . 1 . . . . . Propulsion 4 | . . . . 2 1 . 1 . . . . . Utility 9 | . . . 2 . 1 2 . 2 . . 2 . Weapon . | . . . . . . . . . . . . . Parts Attached 87 | 6 1 . 9 17 20 1 3 1 . 3 22 4 Power 10 | 1 . . 2 1 3 . . . . . 2 1 Engine 5 | 1 . . 2 . 2 . . . . . . . Core 3 | . . . . 1 1 . . . . . 1 . Reactor 2 | . . . . . . . . . . . 1 1 Propulsion 22 | 2 . . 2 5 7 . . 1 . 1 3 1 Treads 4 | 2 . . 2 . . . . . . . . . Leg 4 | . . . . 4 . . . . . . . . Wheel 3 | . . . . 1 2 . . . . . . . Hover . | . . . . . . . . . . . . . Flight 11 | . . . . . 5 . . 1 . 1 3 1 Utility 34 | 1 1 . 4 4 6 1 2 . . 2 11 2 Device 15 | . . . 2 2 3 . . . . 1 7 . Storage 3 | 1 . . . 1 1 . . . . . . . Processor 7 | . . . 1 1 1 1 . . . 1 2 . Hackware 5 | . . . . . . . 2 . . . 2 1 Protection 3 | . 1 . 1 . 1 . . . . . . . Artifact 1 | . . . . . . . . . . . . 1 Weapon 21 | 2 . . 1 7 4 . 1 . . . 6 . Energy Gun 1 | . . . . 1 . . . . . . . . Energy Cannon 1 | . . . . . . . . . . . 1 . Ballistic Gun 11 | 2 . . 1 3 3 . . . . . 2 . Ballistic Cannon 1 | . . . . . . . . . . . 1 . Launcher 4 | . . . . 3 . . . . . . 1 . Special Weapon . | . . . . . . . . . . . . . Impact Weapon 1 | . . . . . 1 . . . . . . . Slashing Weapon 2 | . . . . . . . 1 . . . 1 . Piercing Weapon . | . . . . . . . . . . . . . Special Melee Weapon . | . . . . . . . . . . . . . Unidentified Prototypes 9 | . . . . 1 1 . . . . 1 2 4 Parts Lost 53 | . . 1 6 9 12 . 1 . . 5 3 16 Power 9 | . . 1 1 2 1 . . . . 1 1 2 Propulsion 20 | . . . 2 3 6 . 1 . . 2 1 5 Utility 16 | . . . 2 1 4 . . . . 1 1 7 Weapon 8 | . . . 1 3 1 . . . . 1 . 2 Highest Loss Streak 16 | . . 1 6 4 7 . 1 . . 5 3 16 To Critical Strikes . | . . . . . . . . . . . . . Average Backups 8 | 1 5 7 6 7 11 9 7 8 8 8 8 8 Power . | . 1 1 1 1 . 2 2 1 1 1 . . Propulsion 1 | . 2 1 2 3 2 . . . . . . . Utility 2 | . . . . . 3 3 2 2 3 2 3 1 Weapon 3 | . 2 5 3 2 4 3 3 4 4 4 4 3 Tool/Special . | . . . . . . . . . . . . . Unused Backups 14 | . . 1 5 . . . . . . . 5 3 Power . | . . . . . . . . . . . . . Propulsion 3 | . . 1 1 . . . . . . . 1 . Utility 3 | . . . . . . . . . . . 2 1 Weapon 6 | . . . 4 . . . . . . . 2 . Tool/Special 2 | . . . . . . . . . . . . 2 Average Slot Usage (%) 84 | . 93 94 77 87 86 86 82 70 78 85 84 77 Engine 3 | . 14 8 5 . 3 . . 1 5 5 3 . Core 3 | . . . . 5 2 6 5 5 5 4 3 3 Treads 5 | . 28 28 17 7 . . . . . . . . Leg 4 | . . . . 16 10 . . . . . . . Wheel 1 | . . . . 6 2 . . . . . . . Flight 12 | . . . . . 16 33 29 22 26 25 19 16 Device 12 | . . . 4 13 13 13 11 10 10 14 18 16 Storage 7 | . 14 14 11 9 7 6 5 5 5 5 4 3 Processor 10 | . . . 9 9 10 13 11 10 10 13 14 13 Hackware 5 | . . . . . . . 6 10 10 10 13 14 Protection 3 | . 8 14 7 3 3 . . . . . . . Ballistic Gun 7 | . 28 28 21 9 7 . . . . . . . Launcher 1 | . . . . 3 3 6 5 . . . . . Peak Build Rating 142 | 6 7 7 13 27 39 39 47 60 60 74 130 142 Average Rating 49 | 4 6 6 9 19 31 37 42 49 60 68 105 111 On Entrance 36 | . 6 7 7 11 27 37 39 46 60 60 51 124 Avg Prop Armor Cover (%) 12 | . . . . 15 10 . . . . . . . Naked Turns . | . . . . . . . . . . . . . Heaviest Build 42 | 11 12 12 16 31 36 23 24 26 26 28 42 42 Greatest Support 43 | 40 40 40 40 40 42 26 26 37 37 37 43 43 Greatest Overweight (x) 10 | . . . 3 3 10 . 1 1 . . . 1 Average Overweight (x) . | . . . . . . . . . . . . . Largest Inventory Capacity 15 | 8 8 8 8 15 15 10 10 10 10 10 10 10 Average Capacity 10 | 7 8 8 8 9 13 10 10 10 10 10 10 9 Most Carried 15 | 4 8 8 8 14 15 10 10 10 10 10 10 10 Average Carried 9 | 1 5 7 7 8 12 10 8 9 9 9 9 9 Final Capacity 15 | 8 8 8 8 15 10 10 10 10 10 10 10 5 Final Carried 14 | 4 8 8 8 14 10 10 8 9 10 8 10 2 Class Distribution -------------------- 36% | Hacker-Scout 34% | Mutant 14% | Scavenger-Mutant 10% | Scout Dominant Class ---------------- Mutant | -10/Materials Mutant | -10/Mines Mutant | -9/Materials Scavenger-Mutant | -8/Materials Mutant | -7/Factory Scout | -6/Factory Hacker-Scout | -5/Factory Hacker-Assassin | -4/Factory Hacker-Scout | -4/Waste Hacker-Scout | -4/Factory Hacker-Scout | -3/Research Hacker-Scout | -3/Quarantine Resources | -11 -10 -10 -9 -8 -7 -6 -5 -4 -4 -4 -3 -3 ----------- Run | Yrd Mat Min Mat Mat Fac Fac Fac Fac Was Fac Res Qua Matter Collected 1976 | 260 . 53 238 237 404 84 . 182 . . 515 3 Remotely . | . . . . . . . . . . . . . Salvage Created 2409 | . . 102 550 587 415 84 . . . . 534 137 Parts 142 | . . 4 37 34 22 7 . . . . 27 11 Haulers Intercepted . | . . . . . . . . . . . . . Recyclers Shooed 3 | . . . 1 . . . . . . . 2 . Parts Field Recycled . | . . . . . . . . . . . . . Retrieved Matter . | . . . . . . . . . . . . . Parts Self-Destructed . | . . . . . . . . . . . . . Prevented . | . . . . . . . . . . . . . Parts Restored 1 | . . . . . . . . . . 1 . . Broken 1 | . . . . . . . . . . 1 . . Kills | -11 -10 -10 -9 -8 -7 -6 -5 -4 -4 -4 -3 -3 ------- Run | Yrd Mat Min Mat Mat Fac Fac Fac Fac Was Fac Res Qua Combat Hostiles Destroyed 43 | . . 2 13 11 8 . . . . . 7 2 Guns 26 | . . 2 13 4 5 . . . . . 2 . Cannons 1 | . . . . . . . . . . . . 1 AOE 16 | . . . . 7 3 . . . . . 5 1 Classes Destroyed 14 | . . 1 6 2 3 . . . . . . 2 Worker 7 | . . . . . 2 2 . . . . 1 2 Builder 5 | . . . . 1 3 . . . . . . 1 Tunneler 4 | . . . . 1 . 3 . . . . . . Recycler 9 | . . . 1 2 3 . . . . . 3 . Mechanic 1 | . . . . . 1 . . . . . . . Operator 1 | . . . . . . . . . . . . 1 Watcher 4 | . . . 1 2 . . . . . . . 1 Swarmer 9 | . . . 4 . . . . . . . 5 . Grunt 19 | . . 2 4 8 4 . . . . . . 1 Brawler 1 | . . . 1 . . . . . . . . . Duelist 2 | . . . 1 . 1 . . . . . . . Researcher 1 | . . . . . . . . . . . . 1 Sentry 7 | . . . 3 3 1 . . . . . . . Programmer 5 | . . . . . 2 . . . . . 2 1 Best Kill Streak 6 | . . 2 6 5 6 3 . . . . 5 6 Combat Bots Only 6 | . . 2 6 4 3 . . . . . 5 1 Max Kills in Single Turn 4 | . . 1 1 4 2 1 . . . . 3 3 Gunslinging 1 | . . . . . 1 . . . . . . . Exploded 3 | . . . . 3 1 . . . . . 3 1 Melee . | . . . . . . . . . . . . . Uniques/NPCs Destroyed . | . . . . . . . . . . . . . Combat | -11 -10 -10 -9 -8 -7 -6 -5 -4 -4 -4 -3 -3 -------- Run | Yrd Mat Min Mat Mat Fac Fac Fac Fac Was Fac Res Qua Hostile Shots Fired 823 | . . 28 89 75 270 . 5 . . 23 35 298 Missed 335 | . . 7 26 20 118 . 4 . . 11 14 135 Hits 488 | . . 21 63 55 152 . 1 . . 12 21 163 Melee 11 | . . . 3 . 8 . . . . . . . Projectile 477 | . . 21 60 55 144 . 1 . . 12 21 163 AOE 2 | . . . . . . . . . . 2 . . Critical Strikes 17 | . . 1 . 4 4 . . . . 3 . 5 Actively Blocked 5 | . . . . . . . . . . . . 5 Part Disruptions 1 | . . . . . 1 . . . . . . . Damage Taken 7510 | . . 263 833 1018 1764 . 18 . . 663 499 2452 Core 2579 | . . 44 254 194 528 . . . . 243 46 1270 Absorbed by Shields . | . . . . . . . . . . . . . Redirected to Shielding 56 | . . 13 43 . . . . . . . . . Regen/Repaired (Parts) 162 | . . . . 94 . . . . . 44 24 . Core Remaining (%) 73 | 100 . 82 36 64 24 100 100 . . 78 . . Volleys Fired 204 | . . 12 52 40 28 . . . . 2 47 23 Largest 2 | . . 2 2 2 2 . . . . 1 2 2 Hottest 165 | . . 40 40 86 56 . . . . 30 113 165 Shots Fired 312 | . . 24 95 68 42 . . . . 2 55 26 Gun 217 | . . 24 95 53 29 . . . . . 16 . Cannon 60 | . . . . . . . . . . . 37 23 Launcher 35 | . . . . 15 13 . . . . 2 2 3 Special . | . . . . . . . . . . . . . Kinetic 212 | . . 24 95 35 29 . . . . . 23 6 Thermal 65 | . . . . 18 . . . . . . 30 17 Explosive 35 | . . . . 15 13 . . . . 2 2 3 Electromagnetic . | . . . . . . . . . . . . . Robot Hit Streak 12 | . . 4 9 8 8 . . . . 9 12 4 Robot Miss Streak 4 | . . 2 4 3 4 . . . . . 2 3 Penetration Max 1 | . . . . . . . . . . . 1 . Secondary Targets 2 | . . . 1 . 1 . . . . . . . Max Gunslinging Chain 1 | . . . 1 . 1 . . . . . . . Shots Hit Robots 206 | . . 17 60 42 42 6 . . . 2 27 10 Core Hits 159 | . . 7 31 34 51 4 . . . 1 16 15 Critical Kills 1 | . . . . . . 1 . . . . . . Critical Parts Destroyed . | . . . . . . . . . . . . . Critical Strikes 3 | . . . . . . 1 . . . . . 2 Blast 1 | . . . . . . . . . . . . 1 Smash 1 | . . . . . . 1 . . . . . . Sever 1 | . . . . . . . . . . . . 1 Melee Attacks 68 | . . . . . 31 6 6 . . 17 4 4 Impact 42 | . . . . . 31 6 5 . . . . . Slashing 26 | . . . . . . . 1 . . 17 4 4 Piercing . | . . . . . . . . . . . . . Sneak Attacks 9 | . . . . . 2 5 . . . . 2 . Combat Hostiles . | . . . . . . . . . . . . . Follow-up Attacks . | . . . . . . . . . . . . . Damage Inflicted 7453 | . . 187 580 1862 1544 271 . . . 60 1778 1171 Guns 2296 | . . 185 580 551 515 . . . . . 465 . Cannons 737 | . . . . . . . . . . . 357 380 Explosions 3626 | . . . . 1309 894 . . . . 60 649 714 Melee 779 | . . . . . 124 271 . . . . 307 77 Ramming 15 | . . 2 . 2 11 . . . . . . . Kinetic 2495 | . . 185 580 359 515 . . . . . 663 193 Thermal 983 | . . . . 637 . . . . . . 159 187 Explosive 3088 | . . . . 771 894 . . . . 60 649 714 Electromagnetic 93 | . . . . 93 . . . . . . . . Impact 395 | . . . . . 124 271 . . . . . . Slashing 384 | . . . . . . . . . . . 307 77 Piercing . | . . . . . . . . . . . . . Highest Corruption 5 | . . . . 1 1 . . . 5 5 . . Average Corruption 2 | . . . . 1 1 . . . 5 5 . . Corruption Purged . | . . . . . . . . . . . . . Corruption Blocked 1 | . . . . . . . . . . 1 . . Effects 20 | . . . . . 7 . . . 2 11 . . Message Errors 2 | . . . . . . . . . . 2 . . Matter Fused 8 | . . . . . 4 . . . 2 2 . . Heat Flow Errors 2 | . . . . . 1 . . . . 1 . . Energy Discharges 1 | . . . . . . . . . . 1 . . Data Loss (minor) 4 | . . . . . 1 . . . . 3 . . Alerts 3 | . . . . . 1 . . . . 2 . . Overload Shots . | . . . . . . . . . . . . . Overflow Damage 381 | . . . . 133 10 46 . . . 8 131 53 Projectiles 10 | . . . . . . . . . . . 10 . Explosions 218 | . . . . 133 8 . . . . 8 16 53 Melee 153 | . . . . . 2 46 . . . . 105 . Knockbacks 2 | . . . . . 1 . . . . . . 1 Impact 1 | . . . . . 1 . . . . . . . Kinetic 1 | . . . . . . . . . . . . 1 Secondary . | . . . . . . . . . . . . . Self-Inflicted Damage 519 | . . . . 169 184 . . . . . . 166 Shots 13 | . . . . 6 5 . . . . . . 2 Rammed 2 | . . 1 . 1 . . . . . . . . Targets Rammed 4 | . . 1 . 1 2 . . . . . . . Kicked 2 | . . . . . 2 . . . . . . . Crushed . | . . . . . . . . . . . . . Highest Temperature 342 | . . 58 6 19 81 2 . . 3 179 342 17 Average Temperature 72 | . . 26 4 5 14 2 . . 2 48 98 6 Received Heat Transfer 1764 | . . 168 273 486 483 . . . . 63 . 291 Siege Activations . | . . . . . . . . . . . . . Martial Activations . | . . . . . . . . . . . . . Shielding Activations . | . . . . . . . . . . . . . Robots Disrupted 1 | . . . . 1 . . . . . . . . Combat Hostiles 1 | . . . . 1 . . . . . . . . Robots Corrupted 1 | . . . . . . 1 . . . . . . Combat Hostiles . | . . . . . . . . . . . . . Parts Fried 1 | . . . . . . 1 . . . . . . Impact Corruptions 3 | . . . . . 1 2 . . . . . . Robots Melted . | . . . . . . . . . . . . . Combat Hostiles . | . . . . . . . . . . . . . Parts Melted . | . . . . . . . . . . . . . Heat Transferred 1040 | . . . . 707 . . . . . . 148 185 Parts Sabotaged . | . . . . . . . . . . . . . Parts Stolen . | . . . . . . . . . . . . . Parts Stripped . | . . . . . . . . . . . . . Power Chain Reactions . | . . . . . . . . . . . . . Alert | -11 -10 -10 -9 -8 -7 -6 -5 -4 -4 -4 -3 -3 ------- Run | Yrd Mat Min Mat Mat Fac Fac Fac Fac Was Fac Res Qua Maximum Alert Level 1 | . . . . 1 . . . . . . 1 1 Low Security (%) 97 | 100 100 100 100 88 100 100 100 100 100 100 94 98 Level 1 2 | . . . . 11 . . . . . . 5 1 Level 2 . | . . . . . . . . . . . . . Level 3 . | . . . . . . . . . . . . . Level 4 . | . . . . . . . . . . . . . Level 5 . | . . . . . . . . . . . . . High Security . | . . . . . . . . . . . . . Max Security . | . . . . . . . . . . . . . Peak Influence 235 | . . 40 162 210 156 75 36 11 . 88 235 211 Initial 125 | . . . . 48 77 70 21 11 . . . 125 Average 58 | . . 6 106 116 55 61 21 4 . 27 20 115 Influence Increases 2612 | . . 50 428 524 534 25 32 . . 214 384 421 Destroy 0b10 Robot/C 960 | . . 40 320 240 160 . . . . . 140 60 Destroy 0b10 Robot/NC 160 | . . . 15 30 45 25 . . . . 20 25 Destroy Leader 230 | . . 10 84 54 50 . . . . . 20 12 Allied During Kill 7 | . . . 5 2 . . . . . . . . Successful Hack 271 | . . . 4 . 37 . . . . 131 54 45 Disable Machine 180 | . . . . 45 30 . 15 . . . 15 75 Destroy Structure 459 | . . . . 108 47 . 2 . . 38 120 144 Partial Spotted 120 | . . . . . 75 . . . . 15 15 15 Lose Combat Pursuer 225 | . . . . 45 90 . 15 . . 30 . 45 Influence Decreases 2440 | . . 50 314 468 560 124 54 23 . 214 161 472 Entered New Map 367 | . . . . 66 93 74 24 12 . . . 98 Time Decay 1573 | . . 50 234 292 367 50 20 11 . 178 157 214 Lost Part 450 | . . . 60 90 100 . 10 . . 26 4 160 Lost Ally 50 | . . . 20 20 . . . . . 10 . . Squads Dispatched 25 | . . 1 1 2 11 . . . . 2 3 5 Investigation 1 | . . . . 1 . . . . . . . . Extermination 9 | . . . . . 4 . . . . 2 2 1 Reinforcement 8 | . . . 1 1 2 . . . . . 1 3 Assault 2 | . . 1 . . . . . . . . . 1 Garrison 5 | . . . . . 5 . . . . . . . Intercept . | . . . . . . . . . . . . . Searches Triggered . | . . . . . . . . . . . . . Construction Impeded 3 | . . . . . 1 . . . . . 1 1 Haulers Reinforced . | . . . . . . . . . . . . . Active Scanning Responses . | . . . . . . . . . . . . . Cargo Convoy Interrupts . | . . . . . . . . . . . . . Stealth | -11 -10 -10 -9 -8 -7 -6 -5 -4 -4 -4 -3 -3 --------- Run | Yrd Mat Min Mat Mat Fac Fac Fac Fac Was Fac Res Qua Distress Signals 11 | . . . 5 4 1 . . . . . 1 . Communications Jammed . | . . . . . . . . . . . . . Distress Signals . | . . . . . . . . . . . . . Times Spotted 126 | . 1 2 23 27 21 . 6 . 6 16 7 17 Peak Tracking Total 9 | . 2 2 7 6 6 . 5 . 6 9 4 9 Tactical Retreats 11 | . . . . 2 5 . 1 . . 2 . 1 Traps | -11 -10 -10 -9 -8 -7 -6 -5 -4 -4 -4 -3 -3 ------- Run | Yrd Mat Min Mat Mat Fac Fac Fac Fac Was Fac Res Qua Traps Triggered 7 | . . . 1 1 2 . . 1 . 1 . 1 Indirectly . | . . . . . . . . . . . . . Trap Hack Attempts . | . . . . . . . . . . . . . Triggered . | . . . . . . . . . . . . . Disarmed . | . . . . . . . . . . . . . Reprogrammed . | . . . . . . . . . . . . . Reused . | . . . . . . . . . . . . . Traps Extracted . | . . . . . . . . . . . . . Installed . | . . . . . . . . . . . . . Triggered . | . . . . . . . . . . . . . Machines | -11 -10 -10 -9 -8 -7 -6 -5 -4 -4 -4 -3 -3 ---------- Run | Yrd Mat Min Mat Mat Fac Fac Fac Fac Was Fac Res Qua Machines Disabled 13 | . . . . 3 2 . 1 . . . 1 6 Max in Single Turn 2 | . . . . 2 1 . 1 . . . 1 1 Machines Repaired . | . . . . . . . . . . . . . Machines Dismantled . | . . . . . . . . . . . . . Machines Sabotaged . | . . . . . . . . . . . . . Overloaded Fab Kills . | . . . . . . . . . . . . . Hacking | -11 -10 -10 -9 -8 -7 -6 -5 -4 -4 -4 -3 -3 --------- Run | Yrd Mat Min Mat Mat Fac Fac Fac Fac Was Fac Res Qua Machines Accessed 42 | . . . 1 2 11 1 1 1 . 11 9 5 Terminals 27 | . . . 1 1 7 . 1 1 . 9 3 4 Fabricators 2 | . . . . . 2 . . . . . . . Repair Stations 3 | . . . . 1 . . . . . 1 1 . Recycling Units 4 | . . . . . 1 . . . . . 3 . Scanalyzers 6 | . . . . . 1 1 . . . 1 2 1 Garrison Access . | . . . . . . . . . . . . . Total Hacks 117 | . . . 6 4 27 2 3 2 . 44 20 9 Successful 56 | . . . 4 2 12 1 . . . 25 8 4 Failed 61 | . . . 2 2 15 1 3 2 . 19 12 5 Catastrophic 8 | . . . . . 1 . . . . 3 3 1 Database Lockouts . | . . . . . . . . . . . . . Manual 46 | . . . 2 1 16 . 3 2 . 14 6 2 Terminals 86 | . . . 6 3 18 . 3 2 . 38 9 7 Fabricators 3 | . . . . . 3 . . . . . . . Repair Stations 7 | . . . . 1 . . . . . 4 2 . Recycling Units 7 | . . . . . 1 . . . . . 6 . Scanalyzers 14 | . . . . . 5 2 . . . 2 3 2 Garrison Access . | . . . . . . . . . . . . . Terminal Hacks 23 | . . . 3 1 3 . . . . 14 . 2 Record 3 | . . . . . . . . . . 2 . 1 Prototype ID Bank 1 | . . . . . . . . . . 1 . . Level Access Points 1 | . . . . . . . . . . . . 1 Branch Access Points 3 | . . . . . 1 . . . . 2 . . Emergency Access Points 1 | . . . . . 1 . . . . . . . Machine Index 1 | . . . . . . . . . . 1 . . Terminal Index 1 | . . . . . . . . . . 1 . . Alert Level 1 | . . . 1 . . . . . . . . . Locate Traps 3 | . . . 1 . . . . . . 2 . . Dispatch Records 1 | . . . . . . . . . . 1 . . Patrol Status 2 | . . . . . . . . . . 2 . . Transport Status 1 | . . . . . . . . . . 1 . . Zone Layout 4 | . . . 1 1 1 . . . . 1 . . Fabricator Hacks 1 | . . . . . 1 . . . . . . . Build 1 | . . . . . 1 . . . . . . . Repair Station Hacks 6 | . . . . . . . . . . 4 2 . Scan Component 3 | . . . . . . . . . . 2 1 . Repair 3 | . . . . . . . . . . 2 1 . Recycling Unit Hacks 2 | . . . . . . . . . . . 2 . Retrieve Components 2 | . . . . . . . . . . . 2 . Scanalyzer 10 | . . . . . 5 1 . . . . 3 1 Insert Component 3 | . . . . . 2 . . . . . 1 . Analyze 1 | . . . . . 1 . . . . . . . Retrieve Study 6 | . . . . . 2 1 . . . . 2 1 Garrison Access Hacks . | . . . . . . . . . . . . . Unauthorized Hacks 14 | . . . 1 1 3 . . . . 7 1 1 Terminals 13 | . . . 1 . 3 . . . . 7 1 1 Track 1 | . . . . . . . . . . 1 . . Assimilate 1 | . . . . . . . . . . 1 . . Botnet 11 | . . . 1 . 3 . . . . 5 1 1 Fabricators . | . . . . . . . . . . . . . Repair Stations 1 | . . . . 1 . . . . . . . . Patch 1 | . . . . 1 . . . . . . . . Recycling Units . | . . . . . . . . . . . . . Scanalyzers . | . . . . . . . . . . . . . Garrison Access . | . . . . . . . . . . . . . Data Cores Recovered 1 | . . . . . . . . . . . . 1 Used . | . . . . . . . . . . . . . Hacking Detections 35 | . . . 1 1 9 1 1 1 . 10 7 4 Full Trace Events . | . . . . . . . . . . . . . Feedback Events . | . . . . . . . . . . . . . Feedback Blocked . | . . . . . . . . . . . . . Robot Schematics Acquired . | . . . . . . . . . . . . . Robots Built . | . . . . . . . . . . . . . Authchips . | . . . . . . . . . . . . . Time . | . . . . . . . . . . . . . Total Robot Build Rating . | . . . . . . . . . . . . . Part Schematics Acquired 4 | . . . . . 1 . . . . . . 3 Parts Built 2 | . . . . . 2 . . . . . . . Authchips . | . . . . . . . . . . . . . Time 58 | . . . . . 58 . . . . . . . Total Part Build Rating 14 | . . . . . 14 . . . . . . . Part Studies Acquired 6 | . . . . . 2 1 . . . . 2 1 Parts Repaired 3 | . . . . . . . . . . 2 1 . Time 86 | . . . . . . . . . . 64 22 . Parts Recycled . | . . . . . . . . . . . . . Recycled Matter . | . . . . . . . . . . . . . Retrieved Matter . | . . . . . . . . . . . . . Retrieved Components 1 | . . . . . . . . . . . 1 . Parts Scanalyzed 1 | . . . . . 1 . . . . . . . Part Schematics Acquired 1 | . . . . . 1 . . . . . . . Parts Damaged . | . . . . . . . . . . . . . Bothacking | -11 -10 -10 -9 -8 -7 -6 -5 -4 -4 -4 -3 -3 ------------ Run | Yrd Mat Min Mat Mat Fac Fac Fac Fac Was Fac Res Qua Used RIF Installer . | . . . . . . . . . . . . . Robots Hacked . | . . . . . . . . . . . . . Non-combat . | . . . . . . . . . . . . . Combat . | . . . . . . . . . . . . . Robot Hacks Applied . | . . . . . . . . . . . . . Relay Couplers Released . | . . . . . . . . . . . . . Fabnet Peak Effective % . | . . . . . . . . . . . . . Robots Rewired 1 | . . . . 1 . . . . . . . . Allies Hacked . | . . . . . . . . . . . . . Hacks Repelled . | . . . . . . . . . . . . . Allies | -11 -10 -10 -9 -8 -7 -6 -5 -4 -4 -4 -3 -3 -------- Run | Yrd Mat Min Mat Mat Fac Fac Fac Fac Was Fac Res Qua Total Allies 3 | . . 1 . 1 . . . . . 1 . . Largest Group 1 | . . 1 1 1 . . . . . 1 . . Highest-Rated Group 31 | . . 31 31 13 . . . . . 23 . . Highest-Rated Ally 31 | . . 31 31 13 . . . . . 23 . . Total Orders 1 | . . . . . . . . . . . 1 . EXPLORE 1 | . . . . . . . . . . . 1 . Ally Attacks 16 | . . . 12 4 . . . . . . . . Total Damage 234 | . . . 187 47 . . . . . . . . Kills 5 | . . . 4 1 . . . . . . . . Allies Corrupted . | . . . . . . . . . . . . . Allies Melted . | . . . . . . . . . . . . . Intel | -11 -10 -10 -9 -8 -7 -6 -5 -4 -4 -4 -3 -3 ------- Run | Yrd Mat Min Mat Mat Fac Fac Fac Fac Was Fac Res Qua Active Infowar (turns) 4338 | . . . 492 650 1106 110 58 56 88 509 810 459 Optics 4337 | . . . 492 650 1106 109 58 56 88 509 810 459 Sensors 2437 | . . . . . 416 110 58 56 88 509 810 390 Terrain 2175 | . . . . 316 678 . . . . . 809 372 Robot Analysis Total . | . . . . . . . . . . . . . Derelict Logs Recovered . | . . . . . . . . . . . . . Drone Launches 1 | . . . . . . . . . . . 1 . Drone Recoveries . | . . . . . . . . . . . . . Exploration | -11 -10 -10 -9 -8 -7 -6 -5 -4 -4 -4 -3 -3 ------------- Run | Yrd Mat Min Mat Mat Fac Fac Fac Fac Was Fac Res Qua Turns Passed 4937 | 82 116 339 554 650 1106 110 58 56 88 509 810 459 Spaces Moved 5466 | 46 70 184 219 375 1185 359 132 100 174 926 1083 613 Core 79 | 3 . . 20 . 13 . . . . . . 43 Treads 627 | 43 70 184 199 131 . . . . . . . . Legs 184 | . . . . 77 107 . . . . . . . Wheels 414 | . . . . 167 247 . . . . . . . Hover . | . . . . . . . . . . . . . Flight 4162 | . . . . . 818 359 132 100 174 926 1083 570 Fastest Speed 24 | 50 160 160 150 95 25 25 25 25 25 24 24 27 Average Speed 54 | 152 160 160 159 128 61 25 26 51 25 25 27 29 Slowest Speed 550 | 160 160 160 200 200 550 25 104 104 25 28 32 100 Overloaded Moves . | . . . . . . . . . . . . . Propulsion Burnouts . | . . . . . . . . . . . . . Robots Hopped 39 | . . . . . 13 . 2 . . 13 7 4 Potential Cave-ins 5 | . . . . . . . . . . . 3 2 Cave-ins Triggered . | . . . . . . . . . . . . . Exploration Rate (%) 28 | 5 23 32 23 46 36 6 3 3 78 27 30 56 Regions Visited 12 Branch Regions 2 Pre-discovered Areas . | . . . . . . . . . . . . . Known Exits Taken 5 | . . . . . 1 1 1 . . 1 1 . Unknown Exits Taken 5 | 1 1 1 1 1 . . . . . . . . Scrap Searched . | . . . . . . . . . . . . . Spaces Dug 56 | . . . . 10 7 . 1 . . 17 19 2 Terrain Destroyed 388 | . . . . 145 52 . 1 . . 21 81 88 Melee 25 | . . . . . 7 . 1 . . 17 . . Projectile 34 | . . . . . . . . . . . 27 7 AOE 329 | . . . . 145 45 . . . . 4 54 81 Terrain Rammed . | . . . . . . . . . . . . . Walls Destroyed . | . . . . . . . . . . . . . Machines Disabled . | . . . . . . . . . . . . . Actions | -11 -10 -10 -9 -8 -7 -6 -5 -4 -4 -4 -3 -3 --------- Run | Yrd Mat Min Mat Mat Fac Fac Fac Fac Was Fac Res Qua Total 6976 | 55 74 207 340 473 1445 368 141 104 217 1161 1532 859 Wait 1047 | . . 9 49 25 170 . 3 . 43 222 339 187 Move 5381 | 45 69 183 218 374 1159 358 127 100 173 900 1070 605 Hop 35 | . . . . . 12 . 2 . . 12 5 4 Pick Up 60 | 4 4 1 6 8 9 1 . 1 1 2 19 4 Fast Attach 54 | 6 1 . 9 9 10 1 . 1 . 2 8 7 Attach 36 | . . . 1 3 10 . 2 1 . 4 6 9 Detach 8 | . . . . 1 . . . 1 . . 4 2 Swap 31 | . . . . 6 11 . 1 . . . 11 2 Drop 45 | . . 1 5 4 3 2 . . . . 19 11 Fire 204 | . . 12 52 40 28 . . . . 2 47 23 Melee 68 | . . . . . 31 6 6 . . 17 4 4 Ram . | . . . . . . . . . . . . . Kick 2 | . . . . . 2 . . . . . . . Crush 2 | . . 1 . 1 . . . . . . . . Escape Stasis 1 | . . . . . . . . . . . . 1 Rewire 2 | . . . . 2 . . . . . . . . Trap . | . . . . . . . . . . . . . Miscellaneous . | . . . . . . . . . . . . . Route ------- -11/Scrapyard -10/Materials -10/Mines (discovered 2 exits: *Mat / [*Sub]) -9/Materials -8/Materials -7/Factory (discovered 3 exits: *Fac / Low x2) -6/Factory (discovered 2 exits: *Fac / *Low) -5/Factory -4/Factory -4/Waste -4/Factory (discovered 3 exits: *Res / Upp x2) -3/Research (discovered 2 exits: *Arm / *Qua) -3/Quarantine (discovered 1 exit: *Res) History --------- Turn | Location | Event 53 | -11/Scrapyard | Discovered new exit (range 15) 83 | -11/Scrapyard | Entered Materials 167 | -10/Materials | Discovered new exit (range 15) 199 | -10/Materials | Entered Mines 210 | -10/Mines | Met a Derelict bent on vengeance 301 | -10/Mines | Build established: Mutant 348 | -10/Mines | Discovered new exit (range 13) 502 | -10/Mines | Discovered new exit (range 8) 504 | -10/Mines | Met a Derelict testing a Signal Generator 514 | -10/Mines | Found Signal Generator 538 | -10/Mines | Entered Materials 538 | -9/Materials | Accompanied by 1 ally 538 | -9/Materials | Evolved 2 slots: Utility x2 890 | -9/Materials | Lost 6 parts (1p2n2u1w) 914 | -9/Materials | Core integrity fell below 50% 1065 | -9/Materials | Discovered new exit (range 18) 1092 | -9/Materials | Entered another Materials area 1092 | -8/Materials | Evolved 2 slots: Propulsion x2 1175 | -8/Materials | Lost 4 parts (1p1n2w) 1291 | -8/Materials | Build established: Scavenger-Mutant 1696 | -8/Materials | Discovered new exit (range 6) 1742 | -8/Materials | Entered Factory 1742 | -7/Factory | Evolved 2 slots: Propulsion x1, Utility x1 1908 | -7/Factory | Build established: Mutant 2002 | -7/Factory | Garrison activated, responded to threat 2317 | -7/Factory | Core integrity fell below 50% 2339 | -7/Factory | Lost 7 parts (1p3n2u1w) 2521 | -7/Factory | Garrison activated, responded to threat 2541 | -7/Factory | Garrison activated, responded to threat 2610 | -7/Factory | Fabricated Railgun? 2653 | -7/Factory | Identified exit to Lower Caves 2718 | -7/Factory | Build established: Scout 2807 | -7/Factory | Discovered new exit (range 20) 2848 | -7/Factory | Identified exit to Factory 2848 | -7/Factory | Entered another Factory area 2848 | -6/Factory | Evolved 2 slots: Utility x2 2852 | -6/Factory | Discovered new exit (range 7) 2853 | -6/Factory | Identified exit to Factory 2897 | -6/Factory | Discovered new exit (range 5) 2898 | -6/Factory | Identified exit to Lower Caves 2958 | -6/Factory | Entered another Factory area 2958 | -5/Factory | Evolved 2 slots: Power x1, Propulsion x1 2967 | -5/Factory | Discovered new exit (range 5) 2968 | -5/Factory | Identified exit to Factory 3016 | -5/Factory | Entered another Factory area 3016 | -4/Factory | Evolved 2 slots: Utility x2 3072 | -4/Factory | Sucked down chute 3072 | -4/Factory | Entered Waste 3074 | -4/Waste | Spotted C-40 Crusher 3080 | -4/Waste | Spotted C-40 Crusher 3087 | -4/Waste | EMP discharged 3128 | -4/Waste | Spotted C-40 Crusher 3140 | -4/Waste | Spotted C-40 Crusher 3148 | -4/Waste | Spotted C-40 Crusher 3155 | -4/Waste | Discovered new exit (range 22) 3155 | -4/Waste | Spotted C-40 Crusher 3160 | -4/Waste | Identified exit to Factory 3160 | -4/Waste | Entered Factory 3182 | -4/Factory | Identified exit to Upper Caves 3334 | -4/Factory | Allied Derelicts emerged from ambush trap array 3343 | -4/Factory | Build established: Hacker-Scout 3506 | -4/Factory | Repaired VTOL Module+ 3558 | -4/Factory | Repaired VTOL Module+ 3576 | -4/Factory | Spotted B-86 Titan 3664 | -4/Factory | Discovered new exit (range 22) 3669 | -4/Factory | Identified exit to Research 3669 | -4/Factory | Entered Research 3669 | -3/Research | Evolved 2 slots: Utility x2 3690 | -3/Research | Lost 5 parts (1p2n1u1w) 3776 | -3/Research | Repaired Recalibrator 4231 | -3/Research | Found Fusion Bomb Launcher 4233 | -3/Research | Discovered new exit (range 3) 4233 | -3/Research | Identified exit to Armory 4271 | -3/Research | Spotted B-90 Cyclops 4341 | -3/Research | Discovered new exit (range 34) 4425 | -3/Research | Lost 3 parts (1p1n1u) 4479 | -3/Research | Identified exit to Quarantine 4479 | -3/Research | Entered Quarantine 4491 | -3/Quarantine | Identified exit to Research 4527 | -3/Quarantine | Found Alien Artifact 4530 | -3/Quarantine | Identified Terrabomb 4530 | -3/Quarantine | Used Terrabomb 4541 | -3/Quarantine | Found Terrabomb 4642 | -3/Quarantine | Found Alien Artifact 4642 | -3/Quarantine | Identified Phase Armor 4762 | -3/Quarantine | Found Alien Artifact 4762 | -3/Quarantine | Identified Subatomic Replicator 4783 | -3/Quarantine | Found Alien Artifact 4783 | -3/Quarantine | Identified Core Reset Matrix 4783 | -3/Quarantine | Used Core Reset Matrix 4787 | -3/Quarantine | Detected hypermatrix surge 4787 | -3/Quarantine | Sensed 10 artifacts in vicinity 4787 | -3/Quarantine | Discovered exit to Research (range 5) 4860 | -3/Quarantine | Scanned by Researcher 4894 | -3/Quarantine | Core integrity fell below 50% 4902 | -3/Quarantine | Used Terrabomb 4903 | -3/Quarantine | Met incapacitated Sigix Warrior 4903 | -3/Quarantine | Lockdown squad dispatched 4917 | -3/Quarantine | Core integrity fell below 20% 4938 | -3/Quarantine | Destroyed by P-80 Master with Gamma Rifle Last Messages --------------- 04903_ X-82 Rainmaker knocked back. 04903_ System Shield destroyed. 04908_ ALERT: Intercepting significant anomalous signal. Dispatching assault force. 04910_ Knocked back. 04911_ Connecting with Sigix Quarantine Controls... 04913_ Knocked back. 04919_ Imp. Hacking Suite destroyed. 04919_ Knocked back. 04921_ X-82 Rainmaker Unknown Ballistic Cannon severed. 04922_ Knocked back. 04922_ Adv. Signal Interpreter destroyed. 04924_ Knocked back. 04935_ The unstable cave ceiling collapses. 04935_ G-73 Enforcer crushed by falling debris. 04936_ P-80 Master suffers critical hit (Blast). 04936_ Destroyed Unknown Storage. 04938_ P-80 Master destroyed. Map ----- +----------------------------------------------------+ | ???????????????????????????????# | | ???????????????????????????????# | | ???????????????????????????????+ | | ???????????????????????????????# | | ???????????????????????????????### | | ?????????????????????????????????# | | ???????????????????##????????????# | | ??????????????##### ### ?????????# | | ???????????## "! ??????# | | ??????????# " ! ##### | | ????????# " + " | | ??????# """"""""""## | | ?????# """""" # | | ????# " " " | | ??#? "][= " " | | ??# "][= " " | | ?## "[= " | | ?# " " | | ## " " | | # ;;;;;;;;;;; ;;;;" " " | | # ;"""""""""; ; " " " # | | ;"""""""""; " " " " | | ;""" " T#"" """"""+""""" | | ;"" """ " | | ;""!"&" " | | ;""@"""g g" | | ;"""p%x" TRT;;;+""""""+""""" | | ;""""x"""";;; /"= " | | ;"""""""""; ; " ! " | | ;;;;;;;;;;; ; """" " | | ;[ """" ! " | | ; """" ] " | | ; " " | | ;;;""""""""""""" | | | | | | | | | | | | | | | | | | | | | | | | | | | | | | | | | +----------------------------------------------------+ Best States ------------- Heat Dissipation 48 Energy Generation 28 Energy Capacity 325 Matter Stores 300 Matter Capacity 300 Sight Range 22 Robot Scan Range 18 Terrain Scan Range 16 Terrain Scan Density 10 Corruption Containment 12 Corruption Block 12 Armor Coverage 150 Weapon Shielding 33 Evasion (%) 76 Recoil Reduction 2 Offensive Hacking 22 Defensive Hacking 22 Item Schematics ----------------- Cld. Gravmag System | -3/Quarantine | Archive Hvy. Wave Gun | -3/Quarantine | Archive Gravity Flail | -3/Quarantine | Archive Robot Schematics ------------------ None Fabricated ------------ Railgun | x2 | -7/Factory | Preloaded Repaired ---------- VTOL Module | 12% | -4/Factory VTOL Module | 12% | -4/Factory Recalibrator | 4% | -3/Research Studied --------- None Alien Tech Used ----------------- Terrabomb Phase Armor Subatomic Replicator Core Reset Matrix Achievements -------------- Construction Begets Destruction Resistances Are Futile Challenges ------------ None Game ------ Seed SixTractorExoskeleton Manual? 0 Play Time 01:56:15 Cumulative 124.1 hours Start 2025.10.29 @ 19:29:29 End 2025.10.30 @ 10:32:59 Sessions 5 Manual Loads 0 Difficulty Rogue Special Mode None Game No. 65 Rogue 60 Adventurer 5 Explorer 0 Win Type - Total 3 Types 2/0/1/0/0/0/0/0/0/0 Lore% 61 Gallery% 51 Achievement% 35 Wizard Run 0 Options --------- Layout 1 ASCII 0 Keyboard 0 Movement Numpad Keybinds 1 Fullscreen 1 Font 24/Smallcaps Map View 50x35 Zoom Use 0% Tactical HUD 1 Map Filters NONE Filters NONE Steam 1 RUN: ee635402-6908-4a88-aeaf-32b861af1cb1